Department Family,Entity,Date Paid,Expense Type,Expenses Area,Supplier Name,Transaction Reference,Total,VAT Registration Number,Vlookup
Department of Health,Imperial College Healthcare NHS Trust,04/05/2020,Cnst Contributions,Other Hq Departments,Nhs Litigation Authority,4187624,"3,580,621.90",Optional requirement only,0
Department of Health,Imperial College Healthcare NHS Trust,04/05/2020,Insurance Costs,Office Of Chief Executive,Nhs Litigation Authority,4187624,"52,184.30",Optional requirement only,0
Department of Health,Imperial College Healthcare NHS Trust,04/05/2020,Rates,Estates Directorate,City Of Westminster,4187621,"160,664.00",Optional requirement only,0
Department of Health,Imperial College Healthcare NHS Trust,04/05/2020,Rates,Estates Directorate,London Borough Hammersmith & Fulham,4187622,"199,500.00",Optional requirement only,0
Department of Health,Imperial College Healthcare NHS Trust,04/05/2020,Rates,Estates Directorate,London Borough Hammersmith & Fulham,4187623,"212,800.00",Optional requirement only,0
Department of Health,Imperial College Healthcare NHS Trust,05/05/2020,Agency Estates & Maint'Nce,Estates Directorate,Reed,4187517,"35,502.21",Optional requirement only,0
Department of Health,Imperial College Healthcare NHS Trust,05/05/2020,Cleaning Materials,Estates Directorate,Synergy Health Managed Services Ltd,4187275,"48,861.02",Optional requirement only,0
Department of Health,Imperial College Healthcare NHS Trust,05/05/2020,Computer Maintenance,Information & Comms Technology,Cerner Ltd,4186099,"53,745.12",Optional requirement only,0
Department of Health,Imperial College Healthcare NHS Trust,05/05/2020,Computer Maintenance,Information & Comms Technology,Cerner Ltd,4186100,"40,308.84",Optional requirement only,0
Department of Health,Imperial College Healthcare NHS Trust,05/05/2020,Computer Maintenance,Information & Comms Technology,Mill Systems Ltd,4160299,"38,100.00",Optional requirement only,0
Department of Health,Imperial College Healthcare NHS Trust,05/05/2020,Computer Software/License,"Div Of Surg, Cardiov & Cancer",Change Healthcare Uk Holdings Ltd,4186946,"98,562.58",Optional requirement only,0
Department of Health,Imperial College Healthcare NHS Trust,05/05/2020,Computer Software/License,Information & Comms Technology,The Phoenix Partnership(Leed) Ltd,4181715,"74,890.88",Optional requirement only,0
Department of Health,Imperial College Healthcare NHS Trust,05/05/2020,Computer Software/License,Information & Comms Technology,Wifi Spark Limited,4184520,"41,760.00",Optional requirement only,0
Department of Health,Imperial College Healthcare NHS Trust,05/05/2020,Cx-Hh Consultant Load,Ichnt Balance Sheet,Dr Andrew Wright,4187313,"67,998.52",Optional requirement only,0
Department of Health,Imperial College Healthcare NHS Trust,05/05/2020,Cx-Hh Consultant Load,Ichnt Balance Sheet,Zahid Rehan Salim,4187428,"36,647.35",Optional requirement only,0
Department of Health,Imperial College Healthcare NHS Trust,05/05/2020,Cy Auc -Addns-Bd Purchased,Capital Summary,Me Construction Ltd,4187088,"114,738.60",Optional requirement only,0
Department of Health,Imperial College Healthcare NHS Trust,05/05/2020,Cy Auc -Addns- It Eqpt-Addns,Capital Summary,Infratech Hardware Limited,4182825,"63,597.60",Optional requirement only,0
Department of Health,Imperial College Healthcare NHS Trust,05/05/2020,Cy Auc -Addns- It Eqpt-Addns,Capital Summary,Insight Direct (Uk) Ltd,4185336,"117,220.93",Optional requirement only,0
Department of Health,Imperial College Healthcare NHS Trust,05/05/2020,Cy Auc -Addns- It Eqpt-Addns,Capital Summary,Insight Direct (Uk) Ltd,4185337,"55,620.00",Optional requirement only,0
Department of Health,Imperial College Healthcare NHS Trust,05/05/2020,Cy Auc -Addns- It Eqpt-Addns,Capital Summary,Insight Direct (Uk) Ltd,4185342,"195,818.79",Optional requirement only,0
Department of Health,Imperial College Healthcare NHS Trust,05/05/2020,Cy Auc -Addns- It Eqpt-Addns,Capital Summary,Insight Direct (Uk) Ltd,4185347,"38,934.00",Optional requirement only,0
Department of Health,Imperial College Healthcare NHS Trust,05/05/2020,Ext Contr Laundry,Estates Directorate,Synergy Health Managed Services Ltd,4187277,"43,051.15",Optional requirement only,0
Department of Health,Imperial College Healthcare NHS Trust,05/05/2020,Ext Contr Laundry,Estates Directorate,Synergy Health Managed Services Ltd,4187278,"46,261.32",Optional requirement only,0
Department of Health,Imperial College Healthcare NHS Trust,05/05/2020,Ext Contr Laundry,Estates Directorate,Synergy Health Managed Services Ltd,4187279,"56,411.47",Optional requirement only,0
Department of Health,Imperial College Healthcare NHS Trust,05/05/2020,Fp10s,Div Of Women & Clin Support,Nhs Business Services Authority,4187062,"30,022.79",Optional requirement only,0
Department of Health,Imperial College Healthcare NHS Trust,05/05/2020,Jac - Stock,Balance Sheet St Marys,Baxter Healthcare Ltd,4188173,"43,560.00",Optional requirement only,Stock
Department of Health,Imperial College Healthcare NHS Trust,05/05/2020,Jac - Stock,Balance Sheet St Marys,Janssen-Cilag Ltd,4186764,"57,507.84",Optional requirement only,Stock
Department of Health,Imperial College Healthcare NHS Trust,05/05/2020,Jac - Stock,Balance Sheet St Marys,Polar Speed Distribution Ltd,4186421,"26,649.00",Optional requirement only,Stock
Department of Health,Imperial College Healthcare NHS Trust,05/05/2020,Jac - Stock,Balance Sheet St Marys,Qualasept Ltd,4186474,"42,290.40",Optional requirement only,Stock
Department of Health,Imperial College Healthcare NHS Trust,05/05/2020,Jac - Stock,Balance Sheet St Marys,Qualasept Ltd,4186476,"66,762.24",Optional requirement only,Stock
Department of Health,Imperial College Healthcare NHS Trust,05/05/2020,Jac - Stock,Balance Sheet St Marys,Roche Products Ltd,4188440,"51,942.17",Optional requirement only,Stock
Department of Health,Imperial College Healthcare NHS Trust,05/05/2020,Laboratory Culture Media,Pathology,Dhl Supply Chain  (Former Excel),29180,"37,044.00",Optional requirement only,0
Department of Health,Imperial College Healthcare NHS Trust,05/05/2020,Laboratory Equipment,Pathology,Promega Uk Ltd,29151,"40,443.00",Optional requirement only,0
Department of Health,Imperial College Healthcare NHS Trust,05/05/2020,Laboratory Test Kits,Pathology,Becton Dickinson Uk Ltd,29172,"126,304.05",Optional requirement only,0
Department of Health,Imperial College Healthcare NHS Trust,05/05/2020,Laboratory Test Kits,Pathology,Becton Dickinson Uk Ltd,29192,"71,092.80",Optional requirement only,0
Department of Health,Imperial College Healthcare NHS Trust,05/05/2020,Laboratory Test Kits,Pathology,Cepheid Uk Ltd,29127,"57,420.00",Optional requirement only,0
Department of Health,Imperial College Healthcare NHS Trust,05/05/2020,Med & Prof Fees (Imaging Cons),Ichnt Balance Sheet,Lindo Wing Radiology Llp,4187375,"149,546.38",Optional requirement only,0
Department of Health,Imperial College Healthcare NHS Trust,05/05/2020,Med & Surg Equip General,Div Of Women & Clin Support,Lloyds Retail Chemists Ltd,4176491,"4,260,613.98",Optional requirement only,0
Department of Health,Imperial College Healthcare NHS Trust,05/05/2020,Med & Surg Equip Leases,Estates Directorate,Arjo Uk Ltd,4185257,"93,429.47",Optional requirement only,0
Department of Health,Imperial College Healthcare NHS Trust,05/05/2020,Other Research Exp - Non-Pay,Rd Surgery & Cancer Division,Imperial College London,4173473,"93,155.00",Optional requirement only,0
Department of Health,Imperial College Healthcare NHS Trust,05/05/2020,Other Research Exp - Non-Pay,Rd Surgery & Cancer Division,Medical Research Council,4185232,"35,880.00",Optional requirement only,0
Department of Health,Imperial College Healthcare NHS Trust,05/05/2020,Other Research Exp - Pay,Rd Surgery & Cancer Division,Imperial College London,4171086,"63,808.00",Optional requirement only,0
Department of Health,Imperial College Healthcare NHS Trust,05/05/2020,Other Transport Costs,Office Of Chief Executive,Starcross Trading Ltd T/A Bears,4169672,"39,825.00",Optional requirement only,0
Department of Health,Imperial College Healthcare NHS Trust,05/05/2020,Other Transport Costs,Office Of Chief Executive,Starcross Trading Ltd T/A Bears,4169673,"32,400.00",Optional requirement only,0
Department of Health,Imperial College Healthcare NHS Trust,05/05/2020,Other Transport Costs,Office Of Chief Executive,Starcross Trading Ltd T/A Bears,4173516,"27,000.00",Optional requirement only,0
Department of Health,Imperial College Healthcare NHS Trust,05/05/2020,Rent,Human Resources,Imperial College Healthcare Charity,4187122,"25,000.00",Optional requirement only,0
Department of Health,Imperial College Healthcare NHS Trust,05/05/2020,Season Ticket Cr Abellio,Ichnt Balance Sheet,Abellio Transport Holdings Ltd,4145532,"41,102.00",Optional requirement only,0
Department of Health,Imperial College Healthcare NHS Trust,05/05/2020,Season Ticket Cr Abellio,Ichnt Balance Sheet,Abellio Transport Holdings Ltd,4150953,"27,424.25",Optional requirement only,0
Department of Health,Imperial College Healthcare NHS Trust,05/05/2020,Season Ticket Cr Abellio,Ichnt Balance Sheet,Abellio Transport Holdings Ltd,4161881,"29,975.90",Optional requirement only,0
Department of Health,Imperial College Healthcare NHS Trust,05/05/2020,Supplies Issues Recharges,Ichnt Balance Sheet,Supply Chain Coordination Ltd (Sccl) ( 101),4172657,"89,528.45",Optional requirement only,Stock
Department of Health,Imperial College Healthcare NHS Trust,05/05/2020,Supplies Issues Recharges,Ichnt Balance Sheet,Supply Chain Coordination Ltd (Sccl) ( 101),4181564,"104,293.91",Optional requirement only,Stock
Department of Health,Imperial College Healthcare NHS Trust,05/05/2020,Supplies Issues Recharges,Ichnt Balance Sheet,Supply Chain Coordination Ltd (Sccl) ( 101),4181566,"54,819.89",Optional requirement only,Stock
Department of Health,Imperial College Healthcare NHS Trust,05/05/2020,Supplies Issues Recharges,Ichnt Balance Sheet,Supply Chain Coordination Ltd (Sccl) ( 101),4184798,"98,710.64",Optional requirement only,Stock
Department of Health,Imperial College Healthcare NHS Trust,05/05/2020,Supplies Issues Recharges,Ichnt Balance Sheet,Supply Chain Coordination Ltd (Sccl) ( 101),4184799,"74,634.27",Optional requirement only,Stock
Department of Health,Imperial College Healthcare NHS Trust,05/05/2020,Supplies Issues Recharges,Ichnt Balance Sheet,Supply Chain Coordination Ltd (Sccl) ( 101),4184800,"69,324.17",Optional requirement only,Stock
Department of Health,Imperial College Healthcare NHS Trust,07/05/2020,Acton Housing Association,Ichnt Balance Sheet,A2dominion Housing Group Ltd,4189069,"212,428.64",Optional requirement only,Housing Deductions
Department of Health,Imperial College Healthcare NHS Trust,07/05/2020,Agency Estates & Maint'Nce,Estates Directorate,Reed,4189040,"49,359.82",Optional requirement only,0
Department of Health,Imperial College Healthcare NHS Trust,07/05/2020,Agency Nursing: Qualified,Div Of Med & Integrated Care,Reed,4187762,"92,019.53",Optional requirement only,0
Department of Health,Imperial College Healthcare NHS Trust,07/05/2020,Agency Nursing: Qualified,Div Of Med & Integrated Care,Reed,4189051,"43,388.14",Optional requirement only,0
Department of Health,Imperial College Healthcare NHS Trust,07/05/2020,Agency Nursing: Qualified,"Div Of Surg, Cardiov & Cancer",Reed,4187762,"168,182.76",Optional requirement only,0
Department of Health,Imperial College Healthcare NHS Trust,07/05/2020,Agency Nursing: Qualified,"Div Of Surg, Cardiov & Cancer",Reed,4189051,"189,694.45",Optional requirement only,0
Department of Health,Imperial College Healthcare NHS Trust,07/05/2020,Agency Nursing: Qualified,Div Of Women & Clin Support,Reed,4187762,"39,392.45",Optional requirement only,0
Department of Health,Imperial College Healthcare NHS Trust,07/05/2020,Books  Journals & Subscr,Office Of Chief Executive,Foundation Trust Network,4181863,"25,038.00",Optional requirement only,0
Department of Health,Imperial College Healthcare NHS Trust,07/05/2020,Computer Maintenance,Information & Comms Technology,Cerner Ltd,4190166,"52,800.00",Optional requirement only,0
Department of Health,Imperial College Healthcare NHS Trust,07/05/2020,Computer Software/License,Div Of Women & Clin Support,Clevermed Ltd,4185549,"32,729.77",Optional requirement only,0
Department of Health,Imperial College Healthcare NHS Trust,07/05/2020,Computer Software/License,Estates Directorate,Innovise Software Ltd,4172696,"35,712.00",Optional requirement only,0
Department of Health,Imperial College Healthcare NHS Trust,07/05/2020,Cy Auc -Addns- P & M-Purchased,Capital Summary,Supply Chain Coordination Ltd (Sccl) ( 905),4190286,"82,933.46",Optional requirement only,0
Department of Health,Imperial College Healthcare NHS Trust,07/05/2020,Cy Auc -Addns- P & M-Purchased,Capital Summary,Supply Chain Coordination Ltd (Sccl) ( 905),4190287,"393,026.40",Optional requirement only,0
Department of Health,Imperial College Healthcare NHS Trust,07/05/2020,Cy Auc -Addns- P & M-Purchased,Capital Summary,Supply Chain Coordination Ltd (Sccl) ( 905),4190288,"47,606.87",Optional requirement only,0
Department of Health,Imperial College Healthcare NHS Trust,07/05/2020,Cy Auc -Addns- P & M-Purchased,Capital Summary,Supply Chain Coordination Ltd (Sccl) ( 905),4190289,"393,026.40",Optional requirement only,0
Department of Health,Imperial College Healthcare NHS Trust,07/05/2020,Cy Auc -Addns- P & M-Purchased,Capital Summary,Supply Chain Coordination Ltd (Sccl) ( 905),4190291,"150,255.70",Optional requirement only,0
Department of Health,Imperial College Healthcare NHS Trust,07/05/2020,Ext Contr Logistics,Finance Directorate,Eleanor Hospital Logistics Ltd,4188797,"154,313.76",Optional requirement only,0
Department of Health,Imperial College Healthcare NHS Trust,07/05/2020,Laboratory Chemicals/ Reagents,Pathology,Life Technologies Ltd,29290,"204,864.00",Optional requirement only,0
Department of Health,Imperial College Healthcare NHS Trust,07/05/2020,Other Research Exp - Non-Pay,Rd Medical Directorate,Imperial College London,4173029,"250,000.00",Optional requirement only,0
Department of Health,Imperial College Healthcare NHS Trust,07/05/2020,Other Research Exp - Pay,Rd Medical Directorate,Imperial College London,4169826,"99,856.00",Optional requirement only,0
Department of Health,Imperial College Healthcare NHS Trust,07/05/2020,Other Research Exp - Pay,Rd Medical Directorate,Imperial College London,4170900,"60,790.00",Optional requirement only,0
Department of Health,Imperial College Healthcare NHS Trust,07/05/2020,Other Research Exp - Pay,Rd Medical Directorate,Imperial College London,4187093,"59,110.25",Optional requirement only,0
Department of Health,Imperial College Healthcare NHS Trust,07/05/2020,Other Research Exp - Pay,Rdwomen And Children Division,Imperial College London,4172749,"38,782.22",Optional requirement only,0
Department of Health,Imperial College Healthcare NHS Trust,07/05/2020,Printing Costs,Medical Director Summary,Service Point Trad Divison Paragon Group Uk,4184086,"42,660.00",Optional requirement only,0
Department of Health,Imperial College Healthcare NHS Trust,07/05/2020,Sewerage,Estates Directorate,Castle Water Ltd,4186930,"31,944.76",Optional requirement only,0
Department of Health,Imperial College Healthcare NHS Trust,07/05/2020,Srvcsrecd-Other Nhs,Rd Medical Directorate,Imperial College London,4173752,"61,000.00",Optional requirement only,0
Department of Health,Imperial College Healthcare NHS Trust,07/05/2020,Thames Valley Housing Assoc,Ichnt Balance Sheet,Metropolitan Thames Valley,4189070,"106,523.68",Optional requirement only,Housing Deductions
Department of Health,Imperial College Healthcare NHS Trust,07/05/2020,Water,Estates Directorate,Castle Water Ltd,4186930,"46,916.92",Optional requirement only,0
Department of Health,Imperial College Healthcare NHS Trust,07/05/2020,Other Transport Costs,Pandemic Planning,Starcross Trading Ltd T/A Bears,4172724,"60,575.00",Optional requirement only,0
Department of Health,Imperial College Healthcare NHS Trust,12/05/2020,Acton Housing Association,Ichnt Balance Sheet,A2dominion Housing Group Ltd,4190827,"216,661.02",Optional requirement only,Housing Deductions
Department of Health,Imperial College Healthcare NHS Trust,12/05/2020,Agency Estates & Maint'Nce,Estates Directorate,Reed,4191930,"33,481.75",Optional requirement only,0
Department of Health,Imperial College Healthcare NHS Trust,12/05/2020,Bldg/Eng Equip Maint/Rep,Estates Directorate,Cbre Managed Services Ltd,4191891,"219,060.76",Optional requirement only,0
Department of Health,Imperial College Healthcare NHS Trust,12/05/2020,Clinical Managed Service Contr,Pathology,Abbott Laboratories Ltd,21830,"595,658.97",Optional requirement only,0
Department of Health,Imperial College Healthcare NHS Trust,12/05/2020,Clinical Managed Service Contr,Pathology,Abbott Laboratories Ltd,27659,"245,109.68",Optional requirement only,0
Department of Health,Imperial College Healthcare NHS Trust,12/05/2020,Clinical Managed Service Contr,Pathology,Abbott Laboratories Ltd,27822,"285,484.88",Optional requirement only,0
Department of Health,Imperial College Healthcare NHS Trust,12/05/2020,Clinical Managed Service Contr,Pathology,Abbott Laboratories Ltd,28472,"189,936.36",Optional requirement only,0
Department of Health,Imperial College Healthcare NHS Trust,12/05/2020,Clinical Managed Service Contr,Pathology,Abbott Laboratories Ltd,28557,"42,704.41",Optional requirement only,0
Department of Health,Imperial College Healthcare NHS Trust,12/05/2020,Computer Software/License,Information & Comms Technology,Optimus It Infra Ltd,4173487,"152,966.40",Optional requirement only,0
Department of Health,Imperial College Healthcare NHS Trust,12/05/2020,Contr Other External,Div Of Women & Clin Support,Alliance Medical Radiopharmacy Limited,4183934,"64,800.00",Optional requirement only,0
Department of Health,Imperial College Healthcare NHS Trust,12/05/2020,Cy Auc -Addns-Bd Purchased,Capital Summary,Cbre Managed Services Ltd,4190802,"2,373,837.05",Optional requirement only,0
Department of Health,Imperial College Healthcare NHS Trust,12/05/2020,Cy Auc -Addns-Bd Purchased,Capital Summary,Cbre Managed Services Ltd,4191891,"35,940.88",Optional requirement only,0
Department of Health,Imperial College Healthcare NHS Trust,12/05/2020,Cy Auc -Addns- P & M-Purchased,Capital Summary,Bemrosebooth Paragon Limited,4185554,"214,086.00",Optional requirement only,0
Department of Health,Imperial College Healthcare NHS Trust,12/05/2020,Dialysers,Div Of Med & Integrated Care,Nxstage Medical Uk Ltd,4172708,"34,819.80",Optional requirement only,0
Department of Health,Imperial College Healthcare NHS Trust,12/05/2020,Drugs Pbr Excluded,"Div Of Surg, Cardiov & Cancer",Healthcare At Home Ltd,4187070,"29,345.00",Optional requirement only,0
Department of Health,Imperial College Healthcare NHS Trust,12/05/2020,Drugs Pbr Excluded,"Div Of Surg, Cardiov & Cancer",Healthcare At Home Ltd,4188970,"30,845.00",Optional requirement only,0
Department of Health,Imperial College Healthcare NHS Trust,12/05/2020,Ext Contract - Patient Travel,Pandemic Planning,Starcross Trading Ltd T/A Bears,4173939,"44,675.00",Optional requirement only,0
Department of Health,Imperial College Healthcare NHS Trust,12/05/2020,Ext Contract - Patient Travel,Pandemic Planning,Starcross Trading Ltd T/A Bears,4175624,"39,150.00",Optional requirement only,0
Department of Health,Imperial College Healthcare NHS Trust,12/05/2020,Ext Contract - Patient Travel,Pandemic Planning,Starcross Trading Ltd T/A Bears,4177533,"64,230.00",Optional requirement only,0
Department of Health,Imperial College Healthcare NHS Trust,12/05/2020,Ext Contract - Patient Travel,Pandemic Planning,Starcross Trading Ltd T/A Bears,4181485,"43,740.00",Optional requirement only,0
Department of Health,Imperial College Healthcare NHS Trust,12/05/2020,Ext Contract - Patient Travel,Pandemic Planning,Starcross Trading Ltd T/A Bears,4181486,"104,741.50",Optional requirement only,0
Department of Health,Imperial College Healthcare NHS Trust,12/05/2020,Jac - Stock,Balance Sheet St Marys,Aah Pharmaceuticals Limited,4189778,"48,523.68",Optional requirement only,Stock
Department of Health,Imperial College Healthcare NHS Trust,12/05/2020,Jac - Stock,Balance Sheet St Marys,Baxter Healthcare Ltd,4189624,"38,442.00",Optional requirement only,Stock
Department of Health,Imperial College Healthcare NHS Trust,12/05/2020,Jac - Stock,Balance Sheet St Marys,Mawdsleys-Brooks & Co Ltd,4189670,"46,560.00",Optional requirement only,Stock
Department of Health,Imperial College Healthcare NHS Trust,12/05/2020,Jac - Stock,Balance Sheet St Marys,Roche Products Ltd,4191674,"50,197.61",Optional requirement only,Stock
Department of Health,Imperial College Healthcare NHS Trust,12/05/2020,Minor Works,Nursing Directorate,Cbre Managed Services Ltd,4190802,"89,709.57",Optional requirement only,0
Department of Health,Imperial College Healthcare NHS Trust,12/05/2020,Other Research Exp - Pay,Rd Medical Directorate,Imperial College London,4172694,"65,915.00",Optional requirement only,0
Department of Health,Imperial College Healthcare NHS Trust,12/05/2020,Rent,Div Of Med & Integrated Care,Nhs Property Services Ltd,4165222,"30,430.74",Optional requirement only,0
Department of Health,Imperial College Healthcare NHS Trust,12/05/2020,Thames Valley Housing Assoc,Ichnt Balance Sheet,Metropolitan Thames Valley,4190828,"107,447.38",Optional requirement only,Housing Deductions
Department of Health,Imperial College Healthcare NHS Trust,14/05/2020,Blood Products,Pathology,Nhs Blood And Transplant,28496,"66,563.51",Optional requirement only,0
Department of Health,Imperial College Healthcare NHS Trust,14/05/2020,Blood Products,Pathology,Nhs Blood And Transplant,28499,"329,433.15",Optional requirement only,0
Department of Health,Imperial College Healthcare NHS Trust,14/05/2020,Blood Products,Pathology,Nhs Blood And Transplant,28501,"164,673.89",Optional requirement only,0
Department of Health,Imperial College Healthcare NHS Trust,14/05/2020,Blood Products,Pathology,Nhs Blood And Transplant,28877,"329,433.15",Optional requirement only,0
Department of Health,Imperial College Healthcare NHS Trust,14/05/2020,Blood Products,Pathology,Nhs Blood And Transplant,28878,"164,673.89",Optional requirement only,0
Department of Health,Imperial College Healthcare NHS Trust,14/05/2020,Blood Products,Pathology,Nhs Blood And Transplant,28882,"66,563.51",Optional requirement only,0
Department of Health,Imperial College Healthcare NHS Trust,14/05/2020,Clinical Managed Service Contr,Pathology,Abbott Laboratories Ltd,24332,"287,120.50",Optional requirement only,0
Department of Health,Imperial College Healthcare NHS Trust,14/05/2020,Computer Software/License,Div Of Women & Clin Support,Siemens Healthcare Ltd,4191889,"30,960.00",Optional requirement only,0
Department of Health,Imperial College Healthcare NHS Trust,14/05/2020,Computer Software/License,Estates Directorate,Avoira Ltd,4190300,"31,872.00",Optional requirement only,0
Department of Health,Imperial College Healthcare NHS Trust,14/05/2020,Computer Software/License,Information & Comms Technology,Patients Know Best Limited,4176455,"336,450.00",Optional requirement only,0
Department of Health,Imperial College Healthcare NHS Trust,14/05/2020,Contr Other External,Estates Directorate,Cbre Managed Services Ltd,4187682,"752,926.20",Optional requirement only,0
Department of Health,Imperial College Healthcare NHS Trust,14/05/2020,Cy Auc -Addns-Bd Purchased,Capital Summary,Shj Hospital Pipelines Ltd,4178216,"240,000.00",Optional requirement only,0
Department of Health,Imperial College Healthcare NHS Trust,14/05/2020,Cy Auc -Addns- It Eqpt-Addns,Capital Summary,Cdw Ltd,4191986,"239,397.48",Optional requirement only,0
Department of Health,Imperial College Healthcare NHS Trust,14/05/2020,Cy Auc -Addns- P & M-Purchased,Capital Summary,Fujifilm Sonosite Ltd,4186194,"52,082.16",Optional requirement only,0
Department of Health,Imperial College Healthcare NHS Trust,14/05/2020,Dialysers,Div Of Med & Integrated Care,Baxter Healthcare Ltd,4173021,"143,244.63",Optional requirement only,0
Department of Health,Imperial College Healthcare NHS Trust,14/05/2020,Dialysers,Div Of Med & Integrated Care,Baxter Healthcare Ltd,4187580,"77,731.18",Optional requirement only,0
Department of Health,Imperial College Healthcare NHS Trust,14/05/2020,Dialysers,Div Of Med & Integrated Care,Nxstage Medical Uk Ltd,4187509,"28,027.56",Optional requirement only,0
Department of Health,Imperial College Healthcare NHS Trust,14/05/2020,Equip Maint Contracts,Estates Directorate,Cbre Managed Services Ltd,4185572,"36,616.07",Optional requirement only,0
Department of Health,Imperial College Healthcare NHS Trust,14/05/2020,Equip Maint Contracts,Pathology,Hitachi High-Technologies Europe Gmbh,28943,"30,496.80",Optional requirement only,0
Department of Health,Imperial College Healthcare NHS Trust,14/05/2020,Gas,Estates Directorate,Corona Energy,4192903,"120,179.00",Optional requirement only,0
Department of Health,Imperial College Healthcare NHS Trust,14/05/2020,Gas,Estates Directorate,Corona Energy,4192921,"48,600.23",Optional requirement only,0
Department of Health,Imperial College Healthcare NHS Trust,14/05/2020,Gas,Estates Directorate,Corona Energy,4192924,"57,721.66",Optional requirement only,0
Department of Health,Imperial College Healthcare NHS Trust,14/05/2020,Gas,Estates Directorate,Corona Energy,4192925,"48,116.20",Optional requirement only,0
Department of Health,Imperial College Healthcare NHS Trust,14/05/2020,Jac - Stock,Balance Sheet St Marys,Bayer Plc,4192598,"32,392.19",Optional requirement only,Stock
Department of Health,Imperial College Healthcare NHS Trust,14/05/2020,Jac - Stock,Balance Sheet St Marys,Csl Behring Uk Ltd,4192629,"63,210.00",Optional requirement only,Stock
Department of Health,Imperial College Healthcare NHS Trust,14/05/2020,Laboratory Equipment,Pathology,Promega Uk Ltd,29342,"32,383.20",Optional requirement only,0
Department of Health,Imperial College Healthcare NHS Trust,14/05/2020,Laboratory Test Kits,Pathology,Cepheid Uk Ltd,29352,"34,452.00",Optional requirement only,0
Department of Health,Imperial College Healthcare NHS Trust,14/05/2020,Med & Surg Equip General,Div Of Women & Clin Support,Resmed (Uk) Ltd,4111466,"39,678.24",Optional requirement only,0
Department of Health,Imperial College Healthcare NHS Trust,14/05/2020,Med & Surg Equip General,Pandemic Planning,Medacx Limited,4191921,"46,200.00",Optional requirement only,0
Department of Health,Imperial College Healthcare NHS Trust,14/05/2020,Other Research Exp - Non-Pay,Rd Medical Directorate,Royal Brompton And Harefield Nhs Ft,4168095,"192,060.24",Optional requirement only,0
Department of Health,Imperial College Healthcare NHS Trust,14/05/2020,Other Transport Costs,Office Of Chief Executive,Starcross Trading Ltd T/A Bears,4192857,"78,425.00",Optional requirement only,0
Department of Health,Imperial College Healthcare NHS Trust,14/05/2020,Other Transport Costs,Pathology,Dhl Supply Chain  (Former Excel),29354,"132,708.08",Optional requirement only,0
Department of Health,Imperial College Healthcare NHS Trust,14/05/2020,Other Transport Costs,Pathology,Dhl Supply Chain  (Former Excel),29357,"70,303.82",Optional requirement only,0
Department of Health,Imperial College Healthcare NHS Trust,14/05/2020,Season Ticket Cr Abellio,Ichnt Balance Sheet,Abellio Transport Holdings Ltd,4190794,"43,604.90",Optional requirement only,0
Department of Health,Imperial College Healthcare NHS Trust,14/05/2020,Service Charge,"Div Of Surg, Cardiov & Cancer",Parkside Hospital,4156028,"48,396.24",Optional requirement only,0
Department of Health,Imperial College Healthcare NHS Trust,19/05/2020,Bldg/Eng Equip Maint/Rep,Div Of Med & Integrated Care,Cbre Managed Services Ltd,4194287,"89,191.00",Optional requirement only,0
Department of Health,Imperial College Healthcare NHS Trust,19/05/2020,Bldg/Eng Equip Maint/Rep,Estates Directorate,Cbre Managed Services Ltd,4194287,"228,900.12",Optional requirement only,0
Department of Health,Imperial College Healthcare NHS Trust,19/05/2020,Car Salary Sacrifice,Ichnt Balance Sheet,Tuskerdirect Ltd,4190348,"61,680.34",Optional requirement only,0
Department of Health,Imperial College Healthcare NHS Trust,19/05/2020,Childcare Voucher (Kids Unltd),Ichnt Balance Sheet,Sodexo Motivation Solutions Uk Ltd,4178555,"39,596.00",Optional requirement only,Childcare Vouchers
Department of Health,Imperial College Healthcare NHS Trust,19/05/2020,Childcare Voucher (Kids Unltd),Ichnt Balance Sheet,Sodexo Motivation Solutions Uk Ltd,4187096,"37,911.00",Optional requirement only,Childcare Vouchers
Department of Health,Imperial College Healthcare NHS Trust,19/05/2020,Cleaning Equipment,Estates Directorate,Vermop Uk Ltd,4175024,"156,789.50",Optional requirement only,0
Department of Health,Imperial College Healthcare NHS Trust,19/05/2020,Clinical Managed Service Contr,Pathology,Abbott Laboratories Ltd,29501,"285,834.82",Optional requirement only,0
Department of Health,Imperial College Healthcare NHS Trust,19/05/2020,Clinical Managed Service Contr,Pathology,Beckman Coulter Uk Ltd,29377,"54,280.76",Optional requirement only,0
Department of Health,Imperial College Healthcare NHS Trust,19/05/2020,Clinical Managed Service Contr,Pathology,Beckman Coulter Uk Ltd,29378,"50,444.80",Optional requirement only,0
Department of Health,Imperial College Healthcare NHS Trust,19/05/2020,Computer Maintenance,"Div Of Surg, Cardiov & Cancer",Taunton And Somerset Nhs Trust,4190748,"45,997.00",Optional requirement only,0
Department of Health,Imperial College Healthcare NHS Trust,19/05/2020,Computer Maintenance,Information & Comms Technology,Cerner Ltd,4149597,"52,800.00",Optional requirement only,0
Department of Health,Imperial College Healthcare NHS Trust,19/05/2020,Computer Maintenance,Information & Comms Technology,Cerner Ltd,4186103,"104,092.96",Optional requirement only,0
Department of Health,Imperial College Healthcare NHS Trust,19/05/2020,Computer Maintenance,Information & Comms Technology,Cerner Ltd,4187962,"53,745.12",Optional requirement only,0
Department of Health,Imperial College Healthcare NHS Trust,19/05/2020,Computer Maintenance,Information & Comms Technology,Cerner Ltd,4188843,"40,308.84",Optional requirement only,0
Department of Health,Imperial College Healthcare NHS Trust,19/05/2020,Computer Software/License,Div Of Women & Clin Support,Icnh Limited T/A Dr Doctor,4187713,"60,000.00",Optional requirement only,0
Department of Health,Imperial College Healthcare NHS Trust,19/05/2020,Computer Software/License,Information & Comms Technology,Cerner Ltd,4186101,"304,125.13",Optional requirement only,0
Department of Health,Imperial College Healthcare NHS Trust,19/05/2020,Computer Software/License,Information & Comms Technology,Cerner Ltd,4187957,"288,402.32",Optional requirement only,0
Department of Health,Imperial College Healthcare NHS Trust,19/05/2020,Consultancy Fees,Estates Directorate,Knight Security Limited,4194179,"34,881.60",Optional requirement only,0
Department of Health,Imperial College Healthcare NHS Trust,19/05/2020,Cy Auc -Addns- It Eqpt-Addns,Capital Summary,Cdw Ltd,4187586,"696,953.76",Optional requirement only,0
Department of Health,Imperial College Healthcare NHS Trust,19/05/2020,Cy Auc -Addns- It Eqpt-Addns,Capital Summary,Sdx Services Ltd,4189898,"98,940.00",Optional requirement only,0
Department of Health,Imperial College Healthcare NHS Trust,19/05/2020,Decontamination Services,Estates Directorate,Ihss Limited,4192020,"356,269.39",Optional requirement only,0
Department of Health,Imperial College Healthcare NHS Trust,19/05/2020,Decontamination Services,Estates Directorate,Ihss Limited,4192024,"356,269.39",Optional requirement only,0
Department of Health,Imperial College Healthcare NHS Trust,19/05/2020,Decontamination Services,Estates Directorate,Ihss Limited,4192026,"356,269.39",Optional requirement only,0
Department of Health,Imperial College Healthcare NHS Trust,19/05/2020,Dist Award - Local Cea,Div Of Med & Integrated Care,Imperial College London,4194011,"138,099.85",Optional requirement only,0
Department of Health,Imperial College Healthcare NHS Trust,19/05/2020,Dist Award - Nat Cea,Div Of Med & Integrated Care,Imperial College London,4194011,"102,728.81",Optional requirement only,0
Department of Health,Imperial College Healthcare NHS Trust,19/05/2020,Dist Award - Nat Cea,"Div Of Surg, Cardiov & Cancer",Imperial College London,4194011,"75,003.13",Optional requirement only,0
Department of Health,Imperial College Healthcare NHS Trust,19/05/2020,Dist Award - Nat Cea,Div Of Women & Clin Support,Imperial College London,4194011,"36,766.19",Optional requirement only,0
Department of Health,Imperial College Healthcare NHS Trust,19/05/2020,Dist Award - Nat Cea,Medical Director Summary,Imperial College London,4194011,"44,107.75",Optional requirement only,0
Department of Health,Imperial College Healthcare NHS Trust,19/05/2020,Ic Pay Recharge In: Med,Div Of Med & Integrated Care,Imperial College London,4194011,"152,766.08",Optional requirement only,0
Department of Health,Imperial College Healthcare NHS Trust,19/05/2020,Ic Pay Recharge In: Med,"Div Of Surg, Cardiov & Cancer",Imperial College London,4194011,"396,628.70",Optional requirement only,0
Department of Health,Imperial College Healthcare NHS Trust,19/05/2020,Ic Pay Recharge In: Med,Div Of Women & Clin Support,Imperial College London,4194011,"79,733.50",Optional requirement only,0
Department of Health,Imperial College Healthcare NHS Trust,19/05/2020,Ic Pay Recharge In: Med,Pathology,Imperial College London,29474,"36,701.24",Optional requirement only,0
Department of Health,Imperial College Healthcare NHS Trust,19/05/2020,Items Pending Investigation,Ichnt Balance Sheet,Taunton And Somerset Nhs Trust,4183138,"45,997.00",Optional requirement only,0
Department of Health,Imperial College Healthcare NHS Trust,19/05/2020,Items Pending Investigation,Ichnt Balance Sheet,Uni Hospital Southampton Nhs Ft,4179924,"33,120.00",Optional requirement only,0
Department of Health,Imperial College Healthcare NHS Trust,19/05/2020,Jac - Stock,Balance Sheet St Marys,Amgen Ltd,4193253,"48,408.00",Optional requirement only,Stock
Department of Health,Imperial College Healthcare NHS Trust,19/05/2020,Jac - Stock,Balance Sheet St Marys,Qualasept Ltd,4193267,"206,112.00",Optional requirement only,Stock
Department of Health,Imperial College Healthcare NHS Trust,19/05/2020,Jac - Stock,Balance Sheet St Marys,Qualasept Ltd,4193650,"69,399.78",Optional requirement only,Stock
Department of Health,Imperial College Healthcare NHS Trust,19/05/2020,Lloyds Resale Of Drugs,Div Of Women & Clin Support,Lloyds Retail Chemists Ltd,4179925,"169,356.00",Optional requirement only,0
Department of Health,Imperial College Healthcare NHS Trust,19/05/2020,Med & Surg Equip General,Div Of Women & Clin Support,Lloyds Retail Chemists Ltd,4191282,"2,674,998.14",Optional requirement only,0
Department of Health,Imperial College Healthcare NHS Trust,19/05/2020,Med & Surg Maint Contract,Div Of Med & Integrated Care,Uni Hospital Southampton Nhs Ft,4193015,"33,120.00",Optional requirement only,0
Department of Health,Imperial College Healthcare NHS Trust,19/05/2020,Other Research Exp - Non-Pay,Rd Medical Directorate,Imperial College London,4192858,"855,123.00",Optional requirement only,0
Department of Health,Imperial College Healthcare NHS Trust,19/05/2020,Other Research Exp - Pay,Office Of Chief Executive,Imperial College Of Science Tech And Medicine,4178474,"50,000.00",Optional requirement only,0
Department of Health,Imperial College Healthcare NHS Trust,19/05/2020,Printing Costs,Estates Directorate,Technical Initiatives Uk Ltd [Cs],4188907,"33,180.00",Optional requirement only,0
Department of Health,Imperial College Healthcare NHS Trust,19/05/2020,Supplies Issues Recharges,Ichnt Balance Sheet,Supply Chain Coordination Ltd (Sccl) ( 101),4187995,"67,139.83",Optional requirement only,Stock
Department of Health,Imperial College Healthcare NHS Trust,19/05/2020,Supplies Issues Recharges,Ichnt Balance Sheet,Supply Chain Coordination Ltd (Sccl) ( 101),4187996,"81,209.12",Optional requirement only,Stock
Department of Health,Imperial College Healthcare NHS Trust,20/05/2020,Income Tax Paye,Ichnt Balance Sheet,Hmrc Government Employers Account,4192074,"17,557,671.73",Optional requirement only,0
Department of Health,Imperial College Healthcare NHS Trust,21/05/2020,Cleaning Equipment,Estates Directorate,Vermop Uk Ltd,4175023,"156,789.50",Optional requirement only,0
Department of Health,Imperial College Healthcare NHS Trust,21/05/2020,Clinical Managed Service Contr,Pathology,Abbott Laboratories Ltd,29157,"110,559.06",Optional requirement only,0
Department of Health,Imperial College Healthcare NHS Trust,21/05/2020,Clinical Managed Service Contr,Pathology,Abbott Laboratories Ltd,29158,"105,084.57",Optional requirement only,0
Department of Health,Imperial College Healthcare NHS Trust,21/05/2020,Clinical Managed Service Contr,Pathology,Abbott Laboratories Ltd,29332,"123,687.60",Optional requirement only,0
Department of Health,Imperial College Healthcare NHS Trust,21/05/2020,Computer Hardware Purch,Information & Comms Technology,Cerner Ltd,4084419,"104,182.46",Optional requirement only,0
Department of Health,Imperial College Healthcare NHS Trust,21/05/2020,Contr Photocopier Rental,Information & Comms Technology,Canon (Uk) Ltd,4181527,"220,693.80",Optional requirement only,0
Department of Health,Imperial College Healthcare NHS Trust,21/05/2020,Cy Auc -Addns- Prof Fee)-Purch,Capital Summary,Aecom,4196256,"81,694.50",Optional requirement only,0
Department of Health,Imperial College Healthcare NHS Trust,21/05/2020,Hosting Service Expenses,Nhs Elect,Insource Select Ltd,4196423,"262,500.00",Optional requirement only,0
Department of Health,Imperial College Healthcare NHS Trust,21/05/2020,Items Pending Investigation,Ichnt Balance Sheet,King'S College London,4161132,"27,420.00",Optional requirement only,0
Department of Health,Imperial College Healthcare NHS Trust,21/05/2020,Med & Surg Equip General,Pandemic Planning,Butterfly Network Inc,4184791,"34,836.00",Optional requirement only,0
Department of Health,Imperial College Healthcare NHS Trust,21/05/2020,Med & Surg Equip Leases,Div Of Med & Integrated Care,De Lage Landen Leasing Limited,4123475,"34,236.30",Optional requirement only,0
Department of Health,Imperial College Healthcare NHS Trust,21/05/2020,Med & Surg Maint Contract,"Div Of Surg, Cardiov & Cancer",Supply Chain Coordination Ltd (Sccl) ( 201),4191485,"81,506.40",Optional requirement only,0
Department of Health,Imperial College Healthcare NHS Trust,21/05/2020,Other Research Exp - Pay,Rd Medical Directorate,Imperial College London,4178221,"96,011.71",Optional requirement only,0
Department of Health,Imperial College Healthcare NHS Trust,21/05/2020,Other Research Exp - Pay,Rd Medical Directorate,Imperial College London,4190317,"27,000.00",Optional requirement only,0
Department of Health,Imperial College Healthcare NHS Trust,21/05/2020,Other Research Exp - Pay,Rd Surgery & Cancer Division,Imperial College London,4034116,"94,154.67",Optional requirement only,0
Department of Health,Imperial College Healthcare NHS Trust,21/05/2020,Other Research Exp - Pay,Rd Surgery & Cancer Division,Imperial College London,4176486,"52,796.96",Optional requirement only,0
Department of Health,Imperial College Healthcare NHS Trust,21/05/2020,Other Research Exp - Pay,Rdwomen And Children Division,Imperial College London,4172759,"112,825.10",Optional requirement only,0
Department of Health,Imperial College Healthcare NHS Trust,21/05/2020,Other Research Exp - Pay,Rdwomen And Children Division,Imperial College London,4173750,"28,313.73",Optional requirement only,0
Department of Health,Imperial College Healthcare NHS Trust,21/05/2020,Other Transport Costs,Estates Directorate,Falck Uk Ambulance Service Limited,4173142,"1,445,875.07",Optional requirement only,0
Department of Health,Imperial College Healthcare NHS Trust,21/05/2020,Other Transport Costs,Estates Directorate,Falck Uk Ambulance Service Limited,4187737,"1,445,875.07",Optional requirement only,0
Department of Health,Imperial College Healthcare NHS Trust,21/05/2020,Other Transport Costs,Pandemic Planning,Starcross Trading Ltd T/A Bears,4172849,"60,305.00",Optional requirement only,0
Department of Health,Imperial College Healthcare NHS Trust,21/05/2020,Rent,"Div Of Surg, Cardiov & Cancer",Nhs Property Services Ltd,4137776,"37,701.10",Optional requirement only,0
Department of Health,Imperial College Healthcare NHS Trust,21/05/2020,Rent,"Div Of Surg, Cardiov & Cancer",Nhs Property Services Ltd,4165169,"30,449.49",Optional requirement only,0
Department of Health,Imperial College Healthcare NHS Trust,21/05/2020,Supplies Issues Recharges,Ichnt Balance Sheet,Supply Chain Coordination Ltd (Sccl) ( 101),4191560,"71,795.85",Optional requirement only,Stock
Department of Health,Imperial College Healthcare NHS Trust,21/05/2020,Supplies Issues Recharges,Ichnt Balance Sheet,Supply Chain Coordination Ltd (Sccl) ( 101),4191561,"78,225.00",Optional requirement only,Stock
Department of Health,Imperial College Healthcare NHS Trust,21/05/2020,Supplies Issues Recharges,Ichnt Balance Sheet,Supply Chain Coordination Ltd (Sccl) ( 101),4191562,"59,631.37",Optional requirement only,Stock
Department of Health,Imperial College Healthcare NHS Trust,21/05/2020,Supplies Issues Recharges,Ichnt Balance Sheet,Supply Chain Coordination Ltd (Sccl) ( 101),4195048,"72,200.09",Optional requirement only,Stock
Department of Health,Imperial College Healthcare NHS Trust,21/05/2020,Supplies Issues Recharges,Ichnt Balance Sheet,Supply Chain Coordination Ltd (Sccl) ( 101),4195049,"71,853.65",Optional requirement only,Stock
Department of Health,Imperial College Healthcare NHS Trust,21/05/2020,Supplies Issues Recharges,Ichnt Balance Sheet,Supply Chain Coordination Ltd (Sccl) ( 101),4195050,"49,654.71",Optional requirement only,Stock
Department of Health,Imperial College Healthcare NHS Trust,26/05/2020,Agency Estates & Maint'Nce,Estates Directorate,Reed,4197574,"35,865.49",Optional requirement only,0
Department of Health,Imperial College Healthcare NHS Trust,26/05/2020,Cleaning Materials,Estates Directorate,Synergy Health Managed Services Ltd,4197918,"48,861.02",Optional requirement only,0
Department of Health,Imperial College Healthcare NHS Trust,26/05/2020,Computer Software/License,Information & Comms Technology,Oracle Corporation Uk Ltd,4197791,"71,815.19",Optional requirement only,0
Department of Health,Imperial College Healthcare NHS Trust,26/05/2020,Cy Auc -Addns-Bd Purchased,Capital Summary,Metricab Power Engineering Ltd,4178351,"30,000.00",Optional requirement only,0
Department of Health,Imperial College Healthcare NHS Trust,26/05/2020,Cy Auc -Addns-Bd Purchased,Capital Summary,M&J Group (Construction & Roofin) Ltd [Cs],4190790,"31,560.97",Optional requirement only,0
Department of Health,Imperial College Healthcare NHS Trust,26/05/2020,Cy Auc -Addns-Bd Purchased,Capital Summary,M&J Group (Construction & Roofin) Ltd [Cs],4190792,"31,560.97",Optional requirement only,0
Department of Health,Imperial College Healthcare NHS Trust,26/05/2020,Cy Auc -Addns-Bd Purchased,Capital Summary,Shj Hospital Pipelines Ltd,4188903,"220,800.00",Optional requirement only,0
Department of Health,Imperial College Healthcare NHS Trust,26/05/2020,Cy Auc -Addns-Bd Purchased,Capital Summary,Shj Hospital Pipelines Ltd,4192842,"86,400.00",Optional requirement only,0
Department of Health,Imperial College Healthcare NHS Trust,26/05/2020,Cy Auc -Addns-Bd Purchased,Capital Summary,Shj Hospital Pipelines Ltd,4192849,"103,200.00",Optional requirement only,0
Department of Health,Imperial College Healthcare NHS Trust,26/05/2020,Cy Auc -Addns-Bd Purchased,Capital Summary,Shj Hospital Pipelines Ltd,4192855,"278,400.00",Optional requirement only,0
Department of Health,Imperial College Healthcare NHS Trust,26/05/2020,Cy Auc -Addns-Bd Purchased,Capital Summary,Temple Lifts Ltd [Cs],4184607,"41,808.71",Optional requirement only,0
Department of Health,Imperial College Healthcare NHS Trust,26/05/2020,Ext Contr Laundry,Estates Directorate,Synergy Health Managed Services Ltd,4197919,"36,012.02",Optional requirement only,0
Department of Health,Imperial College Healthcare NHS Trust,26/05/2020,Ext Contr Laundry,Estates Directorate,Synergy Health Managed Services Ltd,4197921,"35,642.80",Optional requirement only,0
Department of Health,Imperial College Healthcare NHS Trust,26/05/2020,Ic Pay Rechge In: Admin & Mgmt,Medical Director Summary,Imperial College London,4198076,"28,240.16",Optional requirement only,0
Department of Health,Imperial College Healthcare NHS Trust,26/05/2020,Jac - Stock,Balance Sheet St Marys,Aah Pharmaceuticals Limited,4195686,"35,851.20",Optional requirement only,Stock
Department of Health,Imperial College Healthcare NHS Trust,26/05/2020,Jac - Stock,Balance Sheet St Marys,Alexion Pharma Uk Ltd,4197223,"60,480.00",Optional requirement only,Stock
Department of Health,Imperial College Healthcare NHS Trust,26/05/2020,Jac - Stock,Balance Sheet St Marys,Bayer Plc,4198077,"91,245.60",Optional requirement only,Stock
Department of Health,Imperial College Healthcare NHS Trust,26/05/2020,Jac - Stock,Balance Sheet St Marys,Bayer Plc,4198078,"31,935.96",Optional requirement only,Stock
Department of Health,Imperial College Healthcare NHS Trust,26/05/2020,Jac - Stock,Balance Sheet St Marys,Gilead Sciences Ltd,4197200,"33,532.30",Optional requirement only,Stock
Department of Health,Imperial College Healthcare NHS Trust,26/05/2020,Jac - Stock,Balance Sheet St Marys,Gilead Sciences Ltd,4197201,"32,546.05",Optional requirement only,Stock
Department of Health,Imperial College Healthcare NHS Trust,26/05/2020,Laboratory Test Kits,Pathology,Becton Dickinson Uk Ltd,29616,"80,207.79",Optional requirement only,0
Department of Health,Imperial College Healthcare NHS Trust,26/05/2020,Laboratory Test Kits,Pathology,Cepheid Uk Ltd,29500,"34,452.00",Optional requirement only,0
Department of Health,Imperial College Healthcare NHS Trust,26/05/2020,Mobile Phones,Div Of Women & Clin Support,Icnh Limited T/A Dr Doctor,4188921,"44,588.40",Optional requirement only,0
Department of Health,Imperial College Healthcare NHS Trust,26/05/2020,Purch Hcare Independent Sector,"Div Of Surg, Cardiov & Cancer",Parkside Hospital,4197146,"48,396.24",Optional requirement only,0
Department of Health,Imperial College Healthcare NHS Trust,26/05/2020,Rent,Div Of Med & Integrated Care,Nhs Property Services Ltd,4137787,"78,000.00",Optional requirement only,0
Department of Health,Imperial College Healthcare NHS Trust,26/05/2020,Rent,Div Of Med & Integrated Care,Nhs Property Services Ltd,4137807,"60,195.75",Optional requirement only,0
Department of Health,Imperial College Healthcare NHS Trust,26/05/2020,Rent,Div Of Med & Integrated Care,Nhs Property Services Ltd,4165205,"78,000.00",Optional requirement only,0
Department of Health,Imperial College Healthcare NHS Trust,26/05/2020,Rent,Div Of Med & Integrated Care,Nhs Property Services Ltd,4165215,"78,000.00",Optional requirement only,0
Department of Health,Imperial College Healthcare NHS Trust,28/05/2020,Cnst Contributions,Other Hq Departments,Nhs Litigation Authority,4199441,"3,580,621.90",Optional requirement only,0
Department of Health,Imperial College Healthcare NHS Trust,28/05/2020,Insurance Costs,Office Of Chief Executive,Nhs Litigation Authority,4199441,"52,184.30",Optional requirement only,0
Department of Health,Imperial College Healthcare NHS Trust,28/05/2020,Rates,Estates Directorate,City Of Westminster,4199438,"160,664.00",Optional requirement only,0
Department of Health,Imperial College Healthcare NHS Trust,28/05/2020,Rates,Estates Directorate,London Borough Hammersmith & Fulham,4199439,"199,500.00",Optional requirement only,0
Department of Health,Imperial College Healthcare NHS Trust,28/05/2020,Rates,Estates Directorate,London Borough Hammersmith & Fulham,4199440,"212,800.00",Optional requirement only,0
,,,,,,Sum:,"62,887,718.95",,
,,,,,Count:,240,,,
